[Event "Early-Titled-Tuesday-Blitz-August-29-2023"]
[Site "Chess.com"]
[Date "2023.08.29"]
[Round "1"]
[White "viktorgen2021"]
[Black "denizozen"]
[Result "0-1"]
[WhiteElo "2462"]
[BlackElo "2872"]
[TimeControl "180+1"]
[EndTime "8:08:54 PDT"]
[Termination "denizozen won by resignation"]

1. d4 {[%clk 0:03:00.9]} 1... Nf6 {[%clk 0:02:57.8]} 2. Nf3 {[%clk 0:02:58.9]}
2... d5 {[%clk 0:02:56]} 3. c4 {[%clk 0:02:57.4]} 3... dxc4 {[%clk 0:02:55.5]}
4. e3 {[%clk 0:02:57.2]} 4... e6 {[%clk 0:02:55.8]} 5. Bxc4 {[%clk 0:02:56.9]}
5... c5 {[%clk 0:02:56.5]} 6. O-O {[%clk 0:02:52.8]} 6... Nc6 {[%clk 0:02:56.6]}
7. Qe2 {[%clk 0:02:52.2]} 7... cxd4 {[%clk 0:02:56.6]} 8. exd4 {[%clk
0:02:52.2]} 8... Be7 {[%clk 0:02:53.8]} 9. Rd1 {[%clk 0:02:51.9]} 9... O-O
{[%clk 0:02:53.5]} 10. Nc3 {[%clk 0:02:52.4]} 10... Na5 {[%clk 0:02:48.5]} 11.
Bd3 {[%clk 0:02:49]} 11... a6 {[%clk 0:02:45.4]} 12. Bg5 {[%clk 0:02:42.1]}
12... Nc6 {[%clk 0:02:38.1]} 13. Rac1 {[%clk 0:02:32.1]} 13... Nb4 {[%clk
0:02:29.3]} 14. Bb1 {[%clk 0:02:30.5]} 14... Nbd5 {[%clk 0:02:26.8]} 15. Ne5
{[%clk 0:02:14.7]} 15... Nxc3 {[%clk 0:02:23.6]} 16. Rxc3 {[%clk 0:02:13]} 16...
g6 {[%clk 0:02:08]} 17. Rh3 {[%clk 0:01:59.6]} 17... Nd5 {[%clk 0:01:57.3]} 18.
Bh6 {[%clk 0:01:32.4]} 18... Re8 {[%clk 0:01:44.4]} 19. Qf3 {[%clk 0:01:30.3]}
19... Bf6 {[%clk 0:01:39.8]} 20. Ng4 {[%clk 0:01:14.2]} 20... Bd7 {[%clk
0:01:33]} 21. Bf4 {[%clk 0:01:04.6]} 21... Bg7 {[%clk 0:01:26.6]} 22. Nh6+
{[%clk 0:01:01.2]} 22... Bxh6 {[%clk 0:01:26.9]} 23. Bxh6 {[%clk 0:00:54.5]}
23... Qf6 {[%clk 0:01:27.4]} 24. Qg4 {[%clk 0:00:46.6]} 24... Rac8 {[%clk
0:01:15]} 25. Bg5 {[%clk 0:00:45.5]} 25... Qg7 {[%clk 0:01:14.8]} 26. Bh6 {[%clk
0:00:41.4]} 26... Qf6 {[%clk 0:01:15.1]} 27. Bg5 {[%clk 0:00:41.7]} 27... Qh8
{[%clk 0:01:14.2]} 28. Qh4 {[%clk 0:00:32.3]} 28... Ba4 {[%clk 0:01:10.3]} 29.
b3 {[%clk 0:00:30.5]} 29... Bb5 {[%clk 0:01:06.5]} 30. Re1 {[%clk 0:00:26.4]}
30... Qg7 {[%clk 0:00:51.1]} 31. Be4 {[%clk 0:00:25.9]} 31... f5 {[%clk
0:00:43.9]} 32. Bxd5 {[%clk 0:00:13.6]} 32... exd5 {[%clk 0:00:44.8]} 33. Rhe3
{[%clk 0:00:13.1]} 33... Re4 {[%clk 0:00:40.1]} 34. Rxe4 {[%clk 0:00:10.4]}
34... dxe4 {[%clk 0:00:41]} 35. Bf6 {[%clk 0:00:10.5]} 35... Qf7 {[%clk
0:00:36.8]} 36. Be5 {[%clk 0:00:10.2]} 36... Bc6 {[%clk 0:00:23]} 37. h3 {[%clk
0:00:10.5]} 37... Bd5 {[%clk 0:00:22.6]} 38. Qf4 {[%clk 0:00:10.2]} 38... Qd7
{[%clk 0:00:20.7]} 39. Rc1 {[%clk 0:00:10.2]} 39... Rxc1+ {[%clk 0:00:20.6]} 40.
Qxc1 {[%clk 0:00:11.1]} 40... Bc6 {[%clk 0:00:18.8]} 41. Qc5 {[%clk 0:00:10.8]}
41... Kf7 {[%clk 0:00:16]} 42. Qa7 {[%clk 0:00:10.4]} 42... e3 {[%clk
0:00:11.5]} 43. f3 {[%clk 0:00:09.2]} 43... e2 {[%clk 0:00:10.4]} 44. Kf2 {[%clk
0:00:09.3]} 44... Bb5 {[%clk 0:00:10.9]} 45. Qb8 {[%clk 0:00:08.3]} 45... Qc6
{[%clk 0:00:08.1]} 46. Qh8 {[%clk 0:00:03.8]} 46... Ke6 {[%clk 0:00:05.4]} 47.
Qf6+ {[%clk 0:00:02.8]} 47... Kd5 {[%clk 0:00:04.3]} 48. Qxc6+ {[%clk
0:00:02.6]} 48... Kxc6 {[%clk 0:00:04.3]} 49. h4 {[%clk 0:00:03]} 49... Bd3
{[%clk 0:00:04.5]} 50. g4 {[%clk 0:00:03.2]} 50... Kd5 {[%clk 0:00:04.3]} 51. h5
{[%clk 0:00:02.9]} 51... b5 {[%clk 0:00:04]} 52. hxg6 {[%clk 0:00:03.2]} 52...
hxg6 {[%clk 0:00:04.3]} 53. gxf5 {[%clk 0:00:03.6]} 53... gxf5 {[%clk
0:00:05.2]} 54. Bf6 {[%clk 0:00:03.9]} 54... b4 {[%clk 0:00:05.5]} 55. Ke1
{[%clk 0:00:04]} 55... Bb1 {[%clk 0:00:04.9]} 56. Kd2 {[%clk 0:00:04.4]} 56...
Bxa2 {[%clk 0:00:05.6]} 57. Kxe2 {[%clk 0:00:05.1]} 57... Bxb3 {[%clk
0:00:06.3]} 58. Kd3 {[%clk 0:00:05.7]} 58... Bc4+ {[%clk 0:00:06.9]} 59. Kc2
{[%clk 0:00:05.7]} 59... a5 {[%clk 0:00:07.5]} 60. Be7 {[%clk 0:00:06.3]} 60...
Kxd4 {[%clk 0:00:06.9]} 61. Bd8 {[%clk 0:00:06.8]} 61... a4 {[%clk 0:00:07]} 62.
Bb6+ {[%clk 0:00:07.3]} 62... Kd5 {[%clk 0:00:07.1]} 63. Ba5 {[%clk 0:00:07.4]}
63... Kc5 {[%clk 0:00:07.6]} 64. Bd8 {[%clk 0:00:06.6]} 64... Kb5 {[%clk
0:00:07.9]} 65. Be7 {[%clk 0:00:06.8]} 65... Bd5 {[%clk 0:00:08.3]} 66. f4
{[%clk 0:00:06.4]} 66... Be4+ {[%clk 0:00:09.1]} 67. Kb2 {[%clk 0:00:06.7]}
67... Kc4 {[%clk 0:00:09.8]} 68. Bf6 {[%clk 0:00:06.8]} 68... Bd5 {[%clk
0:00:09.8]} 69. Be5 {[%clk 0:00:06.6]} 69... Be6 {[%clk 0:00:10.6]} 70. Bf6
{[%clk 0:00:06.7]} 70... Bf7 {[%clk 0:00:11.1]} 71. Be5 {[%clk 0:00:07.3]} 71...
a3+ {[%clk 0:00:10.4]} 72. Ka1 {[%clk 0:00:07.3]} 72... b3 {[%clk 0:00:10.5]}
73. Kb1 {[%clk 0:00:07.9]} 73... Bd5 {[%clk 0:00:10.7]} 74. Bf6 {[%clk
0:00:07.6]} 74... Be4+ {[%clk 0:00:11.3]} 75. Ka1 {[%clk 0:00:08.5]} 75... Bd3
{[%clk 0:00:11.6]} 76. Be5 {[%clk 0:00:08]} 76... Kd5 {[%clk 0:00:12.3]} 77. Bf6
{[%clk 0:00:08]} 77... Ke4 {[%clk 0:00:12.3]} 78. Be5 {[%clk 0:00:08.5]} 78...
b2+ {[%clk 0:00:12.9]} 0-1

[Event "Early-Titled-Tuesday-Blitz-August-29-2023"]
[Site "Chess.com"]
[Date "2023.08.29"]
[Round "1"]
[White "MatthewG-p4p"]
[Black "pedromartinez91"]
[Result "1-0"]
[WhiteElo "2855"]
[BlackElo "2446"]
[TimeControl "180+1"]
[EndTime "8:08:54 PDT"]
[Termination "MatthewG-p4p won by resignation"]

1. e4 {[%clk 0:02:57.8]} 1... e6 {[%clk 0:03:00.2]} 2. d4 {[%clk 0:02:57.3]}
2... d5 {[%clk 0:03:00.6]} 3. e5 {[%clk 0:02:57.6]} 3... c5 {[%clk 0:03:00.6]}
4. c3 {[%clk 0:02:58.3]} 4... Ne7 {[%clk 0:03:00.4]} 5. Nf3 {[%clk 0:02:55.3]}
5... Nec6 {[%clk 0:03:01]} 6. a3 {[%clk 0:02:37.1]} 6... a5 {[%clk 0:02:51.3]}
7. Bb5 {[%clk 0:02:30]} 7... Bd7 {[%clk 0:02:46.5]} 8. Qe2 {[%clk 0:02:26.6]}
8... c4 {[%clk 0:02:40.3]} 9. a4 {[%clk 0:02:22.7]} 9... Na7 {[%clk 0:02:17.5]}
10. Bxd7+ {[%clk 0:02:19]} 10... Nxd7 {[%clk 0:02:02.3]} 11. h4 {[%clk
0:02:17.2]} 11... h6 {[%clk 0:02:01.7]} 12. h5 {[%clk 0:02:15.8]} 12... Be7
{[%clk 0:01:45.7]} 13. Rh3 {[%clk 0:02:14.7]} 13... Qb6 {[%clk 0:01:43.9]} 14.
Rg3 {[%clk 0:02:14]} 14... Bf8 {[%clk 0:01:35.4]} 15. Na3 {[%clk 0:02:01.2]}
15... Qc6 {[%clk 0:01:32.9]} 16. Nc2 {[%clk 0:02:00.5]} 16... b5 {[%clk
0:01:32.8]} 17. axb5 {[%clk 0:01:58.1]} 17... Nxb5 {[%clk 0:01:30]} 18. Nh2
{[%clk 0:01:44.3]} 18... a4 {[%clk 0:01:29.2]} 19. f4 {[%clk 0:01:43.6]} 19...
a3 {[%clk 0:01:26.9]} 20. bxa3 {[%clk 0:01:43.3]} 20... Nb6 {[%clk 0:01:21.7]}
21. Rf3 {[%clk 0:01:16.2]} 21... Na4 {[%clk 0:01:17.3]} 22. Bd2 {[%clk
0:01:14.7]} 22... Nb2 {[%clk 0:01:13.6]} 23. f5 {[%clk 0:01:12.9]} 23... Nd3+
{[%clk 0:01:13.5]} 24. Kf1 {[%clk 0:01:13.1]} 24... Nxa3 {[%clk 0:01:02.3]} 25.
Ne3 {[%clk 0:01:03.3]} 25... Be7 {[%clk 0:00:53.1]} 26. fxe6 {[%clk 0:01:00.3]}
26... fxe6 {[%clk 0:00:54]} 27. Kg1 {[%clk 0:00:57.4]} 27... Rf8 {[%clk
0:00:49.4]} 28. Raf1 {[%clk 0:00:56.9]} 28... Kd7 {[%clk 0:00:45.8]} 29. Nhg4
{[%clk 0:00:41.2]} 29... Rxf3 {[%clk 0:00:42.6]} 30. Rxf3 {[%clk 0:00:38.3]}
30... Rf8 {[%clk 0:00:42.9]} 31. Rxf8 {[%clk 0:00:38.4]} 31... Bxf8 {[%clk
0:00:43.3]} 32. Qf3 {[%clk 0:00:39.3]} 32... Ke8 {[%clk 0:00:42]} 33. Nf2 {[%clk
0:00:21.3]} 33... Nxf2 {[%clk 0:00:19.2]} 34. Qxf2 {[%clk 0:00:22.2]} 34... Nb5
{[%clk 0:00:18.7]} 35. Qg3 {[%clk 0:00:21.4]} 35... Qd7 {[%clk 0:00:18.1]} 36.
Qg6+ {[%clk 0:00:19.1]} 36... Qf7 {[%clk 0:00:18.4]} 37. Qb1 {[%clk 0:00:19.9]}
37... Qd7 {[%clk 0:00:15.7]} 38. Ng4 {[%clk 0:00:19.4]} 38... Kf7 {[%clk
0:00:15.7]} 39. Qg6+ {[%clk 0:00:18.9]} 39... Ke7 {[%clk 0:00:16.3]} 40. Qh7
{[%clk 0:00:16.1]} 40... Ke8 {[%clk 0:00:16.2]} 41. Qg6+ {[%clk 0:00:14.2]}
41... Qf7 {[%clk 0:00:16.6]} 42. Qb1 {[%clk 0:00:15]} 42... Qd7 {[%clk
0:00:15.1]} 43. Kh2 {[%clk 0:00:15.1]} 43... Kd8 {[%clk 0:00:12.5]} 44. Kh3
{[%clk 0:00:14.9]} 44... Qe8 {[%clk 0:00:13]} 45. Kg3 {[%clk 0:00:13.5]} 45...
Be7 {[%clk 0:00:12.1]} 46. Nh2 {[%clk 0:00:13.4]} 46... Kc7 {[%clk 0:00:12.4]}
47. Nf3 {[%clk 0:00:12.7]} 47... Kc6 {[%clk 0:00:13]} 48. Qa1 {[%clk 0:00:12.3]}
48... Kb6 {[%clk 0:00:11.2]} 49. Qh1 {[%clk 0:00:13]} 49... Qf7 {[%clk
0:00:11.1]} 50. Qh3 {[%clk 0:00:12.8]} 50... Bd8 {[%clk 0:00:09.2]} 51. Kf2
{[%clk 0:00:13.1]} 51... Kc6 {[%clk 0:00:09.4]} 52. Ke2 {[%clk 0:00:13.5]} 52...
Na3 {[%clk 0:00:09.6]} 53. Ne1 {[%clk 0:00:13.6]} 53... Nb5 {[%clk 0:00:10.1]}
54. g4 {[%clk 0:00:14.2]} 54... Bg5 {[%clk 0:00:09.7]} 55. Bxg5 {[%clk
0:00:13.8]} 55... hxg5 {[%clk 0:00:10.6]} 56. Qe3 {[%clk 0:00:14.7]} 56... Qe7
{[%clk 0:00:10.1]} 57. Nf3 {[%clk 0:00:14.8]} 57... Qa3 {[%clk 0:00:10]} 58.
Nxg5 {[%clk 0:00:13.5]} 58... Nxc3+ {[%clk 0:00:10.4]} 59. Kf3 {[%clk
0:00:14.1]} 59... Qb2 {[%clk 0:00:08.6]} 60. Nxe6 {[%clk 0:00:12.3]} 60... Ne4
{[%clk 0:00:08.6]} 61. Nf4 {[%clk 0:00:06.8]} 61... Qh2 {[%clk 0:00:08]} 62. Ne2
{[%clk 0:00:06.6]} 62... Qh3+ {[%clk 0:00:07.8]} 63. Kf4 {[%clk 0:00:07.1]}
63... Qf1+ {[%clk 0:00:07.3]} 64. Qf3 {[%clk 0:00:06.1]} 64... Qd1 {[%clk
0:00:03.8]} 65. e6 {[%clk 0:00:05]} 65... Qd2+ {[%clk 0:00:04.2]} 66. Qe3 {[%clk
0:00:05.2]} 66... Qe1 {[%clk 0:00:03.8]} 67. e7 {[%clk 0:00:04.8]} 67... Kd7
{[%clk 0:00:03.8]} 68. Ke5 {[%clk 0:00:04.3]} 68... Qh4 {[%clk 0:00:02.1]} 69.
Kxd5 {[%clk 0:00:04.5]} 69... Qxe7 {[%clk 0:00:02.2]} 70. Qxe4 {[%clk
0:00:03.6]} 70... Qd6+ {[%clk 0:00:01.8]} 71. Kxc4 {[%clk 0:00:04.2]} 71... Qa6+
{[%clk 0:00:02.2]} 72. Kc3 {[%clk 0:00:05]} 72... Qa1+ {[%clk 0:00:02.3]} 73.
Kd2 {[%clk 0:00:05.8]} 73... Qa2+ {[%clk 0:00:02.4]} 74. Ke3 {[%clk 0:00:06.4]}
1-0

[Event "Early-Titled-Tuesday-Blitz-August-29-2023"]
[Site "Chess.com"]
[Date "2023.08.29"]
[Round "1"]
[White "Barbus89"]
[Black "lilleper1"]
[Result "1/2-1/2"]
[WhiteElo "2501"]
[BlackElo "2925"]
[TimeControl "180+1"]
[EndTime "8:09:26 PDT"]
[Termination "Game drawn - insufficient material"]

1. Nf3 {[%clk 0:03:00]} 1... Nf6 {[%clk 0:02:57.2]} 2. g3 {[%clk 0:02:59.5]}
2... g6 {[%clk 0:02:55.5]} 3. b3 {[%clk 0:02:58.5]} 3... Bg7 {[%clk 0:02:55.3]}
4. Bb2 {[%clk 0:02:59.2]} 4... O-O {[%clk 0:02:55.9]} 5. Bg2 {[%clk 0:02:57.3]}
5... c5 {[%clk 0:02:55.8]} 6. c4 {[%clk 0:02:56.2]} 6... Nc6 {[%clk 0:02:51.9]}
7. O-O {[%clk 0:02:54.9]} 7... d6 {[%clk 0:02:50.3]} 8. Nc3 {[%clk 0:02:51.3]}
8... e5 {[%clk 0:02:47.8]} 9. e3 {[%clk 0:02:35.6]} 9... Re8 {[%clk 0:02:42.8]}
10. d4 {[%clk 0:02:03.1]} 10... cxd4 {[%clk 0:02:36.4]} 11. exd4 {[%clk
0:02:04]} 11... e4 {[%clk 0:02:01.1]} 12. Ng5 {[%clk 0:01:53.6]} 12... Bf5
{[%clk 0:01:54.3]} 13. Re1 {[%clk 0:01:39.6]} 13... Nxd4 {[%clk 0:01:16.3]} 14.
Nxf7 {[%clk 0:01:02.7]} 14... Kxf7 {[%clk 0:01:12.1]} 15. Qxd4 {[%clk
0:01:02.4]} 15... Re6 {[%clk 0:00:57.6]} 16. Nxe4 {[%clk 0:00:57.9]} 16... Ne8
{[%clk 0:00:19.9]} 17. Ng5+ {[%clk 0:00:47.9]} 17... Qxg5 {[%clk 0:00:19.2]} 18.
Qd5 {[%clk 0:00:33.5]} 18... Bxb2 {[%clk 0:00:19]} 19. Qxb7+ {[%clk 0:00:27]}
19... Qe7 {[%clk 0:00:14.5]} 20. Qxe7+ {[%clk 0:00:10.3]} 20... Rxe7 {[%clk
0:00:15.4]} 21. Bd5+ {[%clk 0:00:05.9]} 21... Kf6 {[%clk 0:00:10.6]} 22. Bxa8
{[%clk 0:00:06.8]} 22... Bxa1 {[%clk 0:00:10.3]} 23. Rxa1 {[%clk 0:00:06.9]}
23... Nc7 {[%clk 0:00:10.1]} 24. Bf3 {[%clk 0:00:04.5]} 24... Ne6 {[%clk
0:00:09.6]} 25. Rd1 {[%clk 0:00:04.9]} 25... Bh3 {[%clk 0:00:08.7]} 26. Rxd6
{[%clk 0:00:03.1]} 26... Ke5 {[%clk 0:00:08.7]} 27. Rd5+ {[%clk 0:00:03.7]}
27... Kf6 {[%clk 0:00:08.8]} 28. Rd6 {[%clk 0:00:03.9]} 28... Kg7 {[%clk
0:00:08.2]} 29. Rd1 {[%clk 0:00:03.5]} 29... Ng5 {[%clk 0:00:07.2]} 30. Bh1
{[%clk 0:00:02.7]} 30... Re2 {[%clk 0:00:06]} 31. f4 {[%clk 0:00:03]} 31... Ne6
{[%clk 0:00:05.8]} 32. Rd7+ {[%clk 0:00:02.7]} 32... Kf6 {[%clk 0:00:05.7]} 33.
Bf3 {[%clk 0:00:02.3]} 33... Re1+ {[%clk 0:00:04.5]} 34. Kf2 {[%clk 0:00:02]}
34... Ra1 {[%clk 0:00:05.4]} 35. Rxa7 {[%clk 0:00:02.2]} 35... Nd4 {[%clk
0:00:05.8]} 36. Ra6+ {[%clk 0:00:02.8]} 36... Kf7 {[%clk 0:00:05.3]} 37. Bd5+
{[%clk 0:00:03.6]} 37... Ke7 {[%clk 0:00:05.5]} 38. Ke3 {[%clk 0:00:03.9]} 38...
Nf5+ {[%clk 0:00:05.3]} 39. Kf2 {[%clk 0:00:04.7]} 39... Rc1 {[%clk 0:00:04.7]}
40. Ra7+ {[%clk 0:00:05]} 40... Kd6 {[%clk 0:00:04.7]} 41. b4 {[%clk 0:00:05.7]}
41... Rc2+ {[%clk 0:00:04.7]} 42. Kf3 {[%clk 0:00:05.7]} 42... Bg2+ {[%clk
0:00:02.8]} 43. Kg4 {[%clk 0:00:04.4]} 43... Bxd5 {[%clk 0:00:01.9]} 44. cxd5
{[%clk 0:00:04.7]} 44... Rxh2 {[%clk 0:00:02.8]} 45. Kg5 {[%clk 0:00:02.7]}
45... Kxd5 {[%clk 0:00:02.7]} 46. g4 {[%clk 0:00:03.2]} 46... Nd6 {[%clk
0:00:03.6]} 47. f5 {[%clk 0:00:03.9]} 47... gxf5 {[%clk 0:00:03.9]} 48. gxf5
{[%clk 0:00:04.8]} 48... h5 {[%clk 0:00:04.7]} 49. f6 {[%clk 0:00:05.1]} 49...
h4 {[%clk 0:00:05.3]} 50. f7 {[%clk 0:00:05.2]} 50... Rg2+ {[%clk 0:00:05.5]}
51. Kxh4 {[%clk 0:00:05.9]} 51... Rf2 {[%clk 0:00:06.2]} 52. Kg4 {[%clk
0:00:05.2]} 52... Nxf7 {[%clk 0:00:06.3]} 53. Kg3 {[%clk 0:00:05.6]} 53... Rf6
{[%clk 0:00:06.5]} 54. b5 {[%clk 0:00:05.4]} 54... Ne5 {[%clk 0:00:06.8]} 55. a4
{[%clk 0:00:05.7]} 55... Rf3+ {[%clk 0:00:06.9]} 56. Kg2 {[%clk 0:00:05.7]}
56... Rb3 {[%clk 0:00:07.1]} 57. Rh7 {[%clk 0:00:03.6]} 57... Nc4 {[%clk
0:00:07.1]} 58. Rh5+ {[%clk 0:00:03.1]} 58... Kd4 {[%clk 0:00:07]} 59. Rh4+
{[%clk 0:00:03.6]} 59... Kc5 {[%clk 0:00:07.5]} 60. Rh5+ {[%clk 0:00:03.9]}
60... Kb4 {[%clk 0:00:07.9]} 61. b6 {[%clk 0:00:04.8]} 61... Kxa4 {[%clk
0:00:07.3]} 62. Rh4 {[%clk 0:00:04.8]} 62... Kb4 {[%clk 0:00:07.3]} 63. b7
{[%clk 0:00:04.9]} 63... Kc5 {[%clk 0:00:07.8]} 64. Rh5+ {[%clk 0:00:05.2]}
64... Kd4 {[%clk 0:00:07.7]} 65. Rh4+ {[%clk 0:00:06]} 65... Kd5 {[%clk
0:00:08.1]} 66. Rh5+ {[%clk 0:00:06.5]} 66... Ne5 {[%clk 0:00:08]} 67. Rh7
{[%clk 0:00:07.3]} 67... Nc6 {[%clk 0:00:07.2]} 68. Rh5+ {[%clk 0:00:06.4]}
68... Kd6 {[%clk 0:00:07.4]} 69. Rh7 {[%clk 0:00:07.1]} 69... Kc5 {[%clk
0:00:07.7]} 70. Kf2 {[%clk 0:00:06.7]} 70... Nd4 {[%clk 0:00:05.5]} 71. Ke1
{[%clk 0:00:05.1]} 71... Kc4 {[%clk 0:00:04.9]} 72. Kd2 {[%clk 0:00:05.4]} 72...
Rb2+ {[%clk 0:00:04.6]} 73. Kc1 {[%clk 0:00:05.6]} 73... Rb6 {[%clk 0:00:04.9]}
74. Kd2 {[%clk 0:00:05.8]} 74... Kd5 {[%clk 0:00:04.6]} 75. Rd7+ {[%clk
0:00:05.6]} 75... Ke5 {[%clk 0:00:04.5]} 76. Kd3 {[%clk 0:00:05.6]} 76... Nc6
{[%clk 0:00:03.9]} 77. Kc4 {[%clk 0:00:06]} 77... Ke6 {[%clk 0:00:03.9]} 78. Kc5
{[%clk 0:00:05.4]} 78... Kxd7 {[%clk 0:00:01.7]} 79. Kxb6 {[%clk 0:00:05.4]}
79... Kd6 {[%clk 0:00:02.6]} 80. b8=Q+ {[%clk 0:00:03.5]} 80... Nxb8 {[%clk
0:00:02.8]} 1/2-1/2